[Event "Paracin Open 2022"]
[Site "Paracin"]
[Date "2022.07.15"]
[Round "8.17"]
[White "Samant Aditya S"]
[Black "Ristic, Nenad"]
[Result "1/2-1/2"]
[ECO "B77"]
[WhiteElo "2431"]
[BlackElo "2293"]
[Annotator "ChessBase"]
[PlyCount "122"]
[EventDate "2022.07.08"]
[EventCountry "SRB"]
[SourceTitle "playchess.com"]
[Source "ChessBase"]
[SourceQuality "1"]
[TimeControl "5400+30"]

1. e4 {[%emt 0:00:03]} c5 {[%emt 0:00:11]} 2. Nf3 {[%emt 0:00:05]} d6 {[%emt 0:00:06]} 3. d4 {[%emt 0:00:05]} cxd4 {[%emt 0:00:05]} 4. Nxd4 {[%emt 0:00:06]} Nf6 {[%emt 0:00:06]} 5. Nc3 {[%emt 0:00:05]} g6 {[%emt 0:00:04]} 6. Be3 {[%emt 0:00:13]} Bg7 {[%emt 0:00:09]} 7. f3 {[%emt 0:00:06]} Nc6 {[%emt 0:00:10]} 8. Qd2 {[%emt 0:00:29]} O-O {[%emt 0:00:09]} 9. Bc4 {[%emt 0:00:05]} Nxd4 {[%emt 0:00:07]} 10. Bxd4 {[%emt 0:00:07]} Be6 {[%emt 0:00:06]} 11. Bxe6 {[%emt 0:00:44]} fxe6 {[%emt 0:00:03]} 12. O-O-O {[%emt 0:00:11]} Qa5 {[%emt 0:02:44]} 13. Rhe1 {[%emt 0:00:39]} Nd7 {[%emt 0:01:06]} 14. Bxg7 {[%emt 0:00:26]} Kxg7 {[%emt 0:00:03]} 15. e5 {[%emt 0:00:30]} d5 {[%emt 0:07:10]} 16. a3 {[%emt 0:04:45]} Rac8 {[%emt 0:04:34]} 17. Ne2 {[%emt 0:03:35]} Qb6 {[%emt 0:08:11]} 18. Nd4 {[%emt 0:10:24]} Nc5 {[%emt 0:04:41]} 19. Qb4 {[%emt 0:13:13]} Qa6 {[%emt 0:05:21]} 20. Re3 {[%emt 0:04:06]} Rc7 {[%emt 0:04:03]} 21. Qb5 {[%emt 0:05:06]} Kf7 {[%emt 0:03:21]} 22. h4 {[%emt 0:10:08]} Ra8 {[%emt 0:11:20]} 23. h5 {[%emt 0:02:50]} Qxb5 {[%emt 0:02:01]} 24. Nxb5 {[%emt 0:00:16]} Rcc8 {[%emt 0:00:42]} 25. hxg6+ {[%emt 0:08:20]} hxg6 {[%emt 0:00:37]} 26. Rd4 {[%emt 0:00:54]} a6 {[%emt 0:03:44]} 27. Rf4+ {[%emt 0:00:35]} Ke8 {[%emt 0:00:51]} 28. Nd4 {[%emt 0:00:10]} Kd7 {[%emt 0:00:07]} 29. Rg4 {[%emt 0:01:22]} Rg8 {[%emt 0:00:17]} 30. Re1 {[%emt 0:04:52]} g5 {[%emt 0:09:12]} 31. Rh1 {[%emt 0:00:57]} Rg6 {[%emt 0:03:37]} 32. Kd2 {[%emt 0:03:18]} Rf8 {[%emt 0:03:58]} 33. Rh3 {[%emt 0:13:35]} Ke8 {[%emt 0:02:23]} 34. Rhg3 {[%emt 0:04:49]} Rfg8 {[%emt 0:01:22]} 35. b4 {[%emt 0:03:38]} Nd7 {[%emt 0:00:16]} 36. f4 {[%emt 0:00:07]} Kf7 {[%emt 0:01:17]} 37. Nf3 {[%emt 0:01:43]} gxf4 {[%emt 0:01:00]} 38. Rxf4+ {[%emt 0:00:01]} Ke8 {[%emt 0:04:35]} 39. Rxg6 {[%emt 0:00:06]} Rxg6 {[%emt 0:00:04]} 40. g4 {[%emt 0:00:05]} Rh6 {[%emt 0:00:25]} 41. g5 {[%emt 0:00:42]} Rh3 {[%emt 0:00:10]} 42. Ke2 {[%emt 0:00:35]} Nf8 {[%emt 0:00:13]} 43. Rh4 {[%emt 0:01:59]} Rxh4 {[%emt 0:01:41]} 44. Nxh4 {[%emt 0:00:02]} Nd7 {[%emt 0:01:06]} 45. Nf3 {[%emt 0:00:31]} Kf7 {[%emt 0:00:03]} 46. Kd3 {[%emt 0:02:51]} Kg6 {[%emt 0:00:46]} 47. c4 {[%emt 0:01:01]} dxc4+ {[%emt 0:01:15]} 48. Kxc4 {[%emt 0:00:03]} Kf5 {[%emt 0:00:14]} 49. Kd4 {[%emt 0:01:05]} b6 {[%emt 0:00:24]} 50. a4 {[%emt 0:00:52]} Nb8 {[%emt 0:00:09]} 51. Kc4 {[%emt 0:01:21]} Nd7 {[%emt 0:00:50]} 52. Kd4 {[%emt 0:00:50]} Nb8 {[%emt 0:03:40]} 53. Kc4 {[%emt 0:00:23]} Nd7 {[%emt 0:00:32]} 54. Nd4+ {[%emt 0:01:36]} Kxe5 {[%emt 0:03:34]} 55. g6 {[%emt 0:00:10]} Kf6 {[%emt 0:00:12]} 56. g7 {[%emt 0:00:16]} Kxg7 {[%emt 0:01:02]} 57. Nxe6+ {[%emt 0:00:03]} Kf6 {[%emt 0:00:05]} 58. Nc7 {[%emt 0:00:36]} b5+ {[%emt 0:02:23]} 59. axb5 {[%emt 0:00:29]} Ne5+ {[%emt 0:01:51]} 60. Kd5 {[%emt 0:00:31]} axb5 {[%emt 0:00:25]} 61. Nxb5 {[%emt 0:00:02]} Nd3 {[%emt 0:00:19]} 1/2-1/2

[Event "Paracin Open 2022"]
[Site "Paracin"]
[Date "2022.07.15"]
[Round "8.18"]
[White "Ahmad, Khagan"]
[Black "Harshavardhan G B"]
[Result "0-1"]
[ECO "E43"]
[WhiteElo "2081"]
[BlackElo "2397"]
[Annotator "ChessBase"]
[PlyCount "118"]
[EventDate "2022.07.08"]
[EventCountry "SRB"]
[SourceTitle "playchess.com"]
[Source "ChessBase"]
[SourceQuality "1"]
[TimeControl "5400+30"]

1. d4 {[%emt 0:00:01]} Nf6 {[%emt 0:00:56]} 2. c4 {[%emt 0:00:09]} e6 {[%emt 0:00:49]} 3. Nc3 {[%emt 0:00:05]} Bb4 {[%emt 0:00:16]} 4. e3 {[%emt 0:00:05]} b6 {[%emt 0:00:06]} 5. Bd3 {[%emt 0:00:04]} Bb7 {[%emt 0:00:10]} 6. Nge2 {[%emt 0:00:05]} Bxg2 {[%emt 0:00:28]} 7. Rg1 {[%emt 0:00:03]} Bf3 {[%emt 0:00:38]} 8. Qc2 {[%emt 0:03:06]} Nc6 {[%emt 0:03:08]} 9. Bd2 {[%emt 0:05:23]} e5 {[%emt 0:04:21]} 10. d5 {[%emt 0:21:21]} Ne7 {[%emt 0:00:59]} 11. a3 {[%emt 0:09:07]} Bxc3 {[%emt 0:01:03]} 12. Bxc3 {[%emt 0:00:10]} d6 {[%emt 0:03:33]} 13. Rg3 {[%emt 0:01:21]} Bh5 {[%emt 0:08:36]} 14. f4 {[%emt 0:06:10]} Ng6 {[%emt 0:01:21]} 15. fxe5 {[%emt 0:19:36]} dxe5 {[%emt 0:01:13]} 16. e4 {[%emt 0:01:25]} Nd7 {[%emt 0:01:45]} 17. O-O-O {[%emt 0:02:12]} Nc5 {[%emt 0:05:50]} 18. Rf1 {[%emt 0:10:58]} Qh4 {[%emt 0:02:35]} 19. Rf2 {[%emt 0:04:36]} Bxe2 {[%emt 0:00:51]} 20. Qxe2 {[%emt 0:01:33]} Nf4 {[%emt 0:00:34]} 21. Rxf4 {[%emt 0:00:04]} Qxf4+ {[%emt 0:00:14]} 22. Kc2 {[%emt 0:00:10]} O-O {[%emt 0:04:47]} 23. Bd2 {[%emt 0:02:58]} Qf6 {[%emt 0:00:11]} 24. Bg5 {[%emt 0:00:53]} Qd6 {[%emt 0:00:16]} 25. h4 {[%emt 0:00:03]} f5 {[%emt 0:00:20]} 26. h5 {[%emt 0:01:36]} Rf7 {[%emt 0:01:46]} 27. Bd2 {[%emt 0:01:27]} Raf8 {[%emt 0:01:13]} 28. Qg2 {[%emt 0:01:12]} fxe4 {[%emt 0:03:14]} 29. Bxe4 {[%emt 0:00:05]} Nxe4 {[%emt 0:00:09]} 30. Qxe4 {[%emt 0:00:04]} Qf6 {[%emt 0:00:08]} 31. h6 {[%emt 0:01:56]} g6 {[%emt 0:00:15]} 32. Rg5 {[%emt 0:00:09]} Re8 {[%emt 0:01:03]} 33. b4 {[%emt 0:01:41]} Qf3 {[%emt 0:00:30]} 34. Rg4 {[%emt 0:00:41]} Qxe4+ {[%emt 0:00:16]} 35. Rxe4 {[%emt 0:00:05]} Rf5 {[%emt 0:00:06]} 36. Kd3 {[%emt 0:00:57]} Kf7 {[%emt 0:00:12]} 37. c5 {[%emt 0:00:08]} b5 {[%emt 0:00:28]} 38. Re1 {[%emt 0:01:28]} g5 {[%emt 0:01:29]} 39. Ke4 {[%emt 0:00:17]} Kg6 {[%emt 0:00:07]} 40. Be3 {[%emt 0:00:24]} Rf4+ {[%emt 0:00:37]} 41. Kd3 {[%emt 0:00:04]} Rg4 {[%emt 0:00:12]} 42. Ke2 {[%emt 0:01:54]} Rd8 {[%emt 0:01:06]} 43. Rd1 {[%emt 0:00:12]} Rc4 {[%emt 0:00:54]} 44. Kf3 {[%emt 0:00:46]} Kf5 {[%emt 0:00:11]} 45. c6 {[%emt 0:00:50]} Rxc6 {[%emt 0:00:18]} 46. Bc5 {[%emt 0:00:13]} Rxh6 {[%emt 0:00:12]} 47. Rf1 {[%emt 0:00:19]} Rxd5 {[%emt 0:00:23]} 48. Ke3+ {[%emt 0:00:03]} Ke6 {[%emt 0:00:20]} 49. Rf8 {[%emt 0:00:04]} Rh3+ {[%emt 0:00:08]} 50. Ke4 {[%emt 0:00:03]} Rh4+ {[%emt 0:00:07]} 51. Ke3 {[%emt 0:00:04]} Rf4 {[%emt 0:00:31]} 52. Re8+ {[%emt 0:00:09]} Kf5 {[%emt 0:00:10]} 53. Re7 {[%emt 0:00:10]} Re4+ {[%emt 0:00:10]} 54. Kf2 {[%emt 0:00:05]} Rd2+ {[%emt 0:00:14]} 55. Kf1 {[%emt 0:00:06]} Rc4 {[%emt 0:00:09]} 56. Ke1 {[%emt 0:00:05]} Ra2 {[%emt 0:00:05]} 57. Kd1 {[%emt 0:00:06]} h5 {[%emt 0:00:10]} 58. Rf7+ {[%emt 0:00:05]} Kg6 {[%emt 0:00:19]} 59. Rf2 {[%emt 0:00:11]} Rxf2 {[%emt 0:00:08]} 0-1

[Event "Paracin Open 2022"]
[Site "Paracin"]
[Date "2022.07.15"]
[Round "8.19"]
[White "Harikrishnan.A.Ra"]
[Black "Baasansuren, Erdene"]
[Result "1-0"]
[ECO "D37"]
[WhiteElo "2396"]
[BlackElo "2243"]
[Annotator "ChessBase"]
[PlyCount "57"]
[EventDate "2022.07.08"]
[EventCountry "SRB"]
[SourceTitle "playchess.com"]
[Source "ChessBase"]
[SourceQuality "1"]
[TimeControl "5400+30"]

1. d4 {[%emt 0:00:03]} d5 {[%emt 0:00:35]} 2. c4 {[%emt 0:00:09]} e6 {[%emt 0:00:40]} 3. Nf3 {[%emt 0:00:06]} Nf6 {[%emt 0:00:28]} 4. Nc3 {[%emt 0:00:05]} Be7 {[%emt 0:00:50]} 5. Bf4 {[%emt 0:00:08]} O-O {[%emt 0:00:54]} 6. e3 {[%emt 0:00:21]} b6 {[%emt 0:00:40]} 7. Bd3 {[%emt 0:00:18]} dxc4 {[%emt 0:02:33]} 8. Bxc4 {[%emt 0:00:02]} Ba6 {[%emt 0:00:18]} 9. Bxa6 {[%emt 0:00:59]} Nxa6 {[%emt 0:00:10]} 10. a3 {[%emt 0:02:26]} c5 {[%emt 0:26:46]} 11. O-O {[%emt 0:04:35]} Qc8 {[%emt 0:01:19]} 12. Qe2 {[%emt 0:42:01]} Qb7 {[%emt 0:07:42]} 13. Rac1 {[%emt 0:00:41]} Rac8 {[%emt 0:05:59]} 14. Nb5 {[%emt 0:00:35]} Rfd8 {[%emt 0:02:14]} 15. h3 {[%emt 0:02:57]} Nd5 {[%emt 0:14:30]} 16. Bg5 {[%emt 0:11:59]} Nf6 {[%emt 0:20:34]} 17. Bh4 {[%emt 0:04:38]} cxd4 {[%emt 0:05:34]} 18. Nfxd4 {[%emt 0:02:33]} Nc5 {[%emt 0:02:15]} 19. Qf3 {[%emt 0:04:04]} Nfe4 {[%emt 0:04:47]} 20. Bxe7 Qxe7 {[%emt 0:00:01]} 21. Rfd1 {[%emt 0:09:36]} a6 {[%emt 0:01:09]} 22. Nc3 {[%emt 0:00:02]} Nxc3 {[%emt 0:00:26]} 23. Rxc3 {[%emt 0:00:02]} e5 {[%emt 0:00:53]} 24. Nf5 {[%emt 0:00:48]} Qe6 {[%emt 0:00:33]} 25. Rxd8+ {[%emt 0:04:01]} Rxd8 {[%emt 0:00:01]} 26. b4 {[%emt 0:00:01]} Nd7 {[%emt 0:01:03]} 27. Rc6 {[%emt 0:01:53]} Qb3 {[%emt 0:00:34]} 28. Rd6 {[%emt 0:00:32]} Kf8 {[%emt 0:00:23]} 29. Rxd7 {[%emt 0:00:24]} 1-0

[Event "Paracin Open 2022"]
[Site "Paracin"]
[Date "2022.07.15"]
[Round "8.20"]
[White "Anuj Shrivatri"]
[Black "Akin, Yagiz Cinar"]
[Result "1-0"]
[ECO "D35"]
[WhiteElo "2383"]
[BlackElo "2125"]
[Annotator "ChessBase"]
[PlyCount "97"]
[EventDate "2022.07.08"]
[EventCountry "SRB"]
[SourceTitle "playchess.com"]
[Source "ChessBase"]
[SourceQuality "1"]
[TimeControl "5400+30"]

1. d4 {[%emt 0:02:56]} d5 {[%emt 0:00:37]} 2. c4 {[%emt 0:00:05]} e6 {[%emt 0:00:03]} 3. Nc3 {[%emt 0:00:05]} Nf6 {[%emt 0:00:09]} 4. cxd5 {[%emt 0:00:05]} exd5 {[%emt 0:00:04]} 5. Bg5 {[%emt 0:00:10]} Be7 {[%emt 0:00:11]} 6. e3 {[%emt 0:00:05]} c6 {[%emt 0:00:09]} 7. Bd3 {[%emt 0:00:06]} Nbd7 {[%emt 0:00:12]} 8. Nf3 {[%emt 0:00:16]} h6 {[%emt 0:00:11]} 9. Bf4 {[%emt 0:00:08]} Nh5 {[%emt 0:11:14]} 10. Be5 {[%emt 0:00:24]} Nxe5 {[%emt 0:00:10]} 11. Nxe5 {[%emt 0:01:33]} Nf6 {[%emt 0:00:08]} 12. O-O {[%emt 0:00:08]} O-O {[%emt 0:00:05]} 13. a3 {[%emt 0:00:03]} c5 {[%emt 0:15:02]} 14. Kh1 {[%emt 0:01:19]} c4 {[%emt 0:18:23]} 15. Bb1 {[%emt 0:11:06]} b5 {[%emt 0:11:52]} 16. Qc2 {[%emt 0:03:32]} g6 {[%emt 0:13:54]} 17. Nxb5 {[%emt 0:03:14]} Bf5 {[%emt 0:01:12]} 18. Qa4 {[%emt 0:04:10]} Bd7 {[%emt 0:05:30]} 19. Nxd7 {[%emt 0:08:00]} Qxd7 {[%emt 0:00:22]} 20. Nc3 {[%emt 0:00:19]} Qb7 {[%emt 0:04:34]} 21. Ra2 {[%emt 0:00:36]} Rab8 {[%emt 0:04:38]} 22. Qd1 {[%emt 0:01:51]} Qd7 {[%emt 0:01:02]} 23. Qa4 {[%emt 0:08:57]} Qc7 {[%emt 0:03:07]} 24. Bc2 {[%emt 0:00:33]} Rb6 {[%emt 0:01:57]} 25. Bd1 {[%emt 0:03:02]} Qb7 {[%emt 0:02:41]} 26. Bf3 {[%emt 0:00:27]} Rxb2 {[%emt 0:01:25]} 27. Bxd5 {[%emt 0:08:08]} Nxd5 {[%emt 0:04:06]} 28. Rxb2 {[%emt 0:00:14]} Qxb2 {[%emt 0:00:04]} 29. Nxd5 {[%emt 0:00:10]} Bxa3 {[%emt 0:01:14]} 30. Qxc4 {[%emt 0:00:12]} Rb8 {[%emt 0:00:23]} 31. h3 {[%emt 0:07:37]} Qb5 {[%emt 0:00:37]} 32. Qxb5 {[%emt 0:00:26]} Rxb5 {[%emt 0:00:04]} 33. Ra1 {[%emt 0:00:13]} Rxd5 {[%emt 0:00:50]} 34. Rxa3 {[%emt 0:00:06]} a5 {[%emt 0:00:03]} 35. Kg1 {[%emt 0:00:33]} Rb5 {[%emt 0:00:35]} 36. f3 {[%emt 0:04:11]} Kf8 {[%emt 0:00:40]} 37. e4 {[%emt 0:00:08]} Ke7 {[%emt 0:00:13]} 38. Kf2 {[%emt 0:00:09]} Kd6 {[%emt 0:01:10]} 39. Ke3 {[%emt 0:00:06]} Kc6 {[%emt 0:00:19]} 40. Kd3 {[%emt 0:00:08]} f5 {[%emt 0:00:45]} 41. Kc4 {[%emt 0:00:39]} fxe4 {[%emt 0:00:28]} 42. fxe4 {[%emt 0:00:05]} Rg5 {[%emt 0:00:19]} 43. g3 {[%emt 0:01:44]} h5 {[%emt 0:00:38]} 44. d5+ {[%emt 0:00:53]} Kd6 {[%emt 0:00:04]} 45. Kd4 {[%emt 0:00:13]} a4 {[%emt 0:00:14]} 46. Rc3 {[%emt 0:34:25]} Kd7 {[%emt 0:00:21]} 47. e5 {[%emt 0:00:00]} Rf5 {[%emt 0:00:18]} 48. e6+ {[%emt 0:01:00]} Kd8 {[%emt 0:01:15]} 49. d6 {[%emt 0:00:00]} 1-0

[Event "Paracin Open 2022"]
[Site "Paracin"]
[Date "2022.07.16"]
[Round "9.1"]
[White "Suleymenov, Alisher"]
[Black "Praggnanandhaa R"]
[Result "1/2-1/2"]
[ECO "D45"]
[WhiteElo "2467"]
[BlackElo "2648"]
[Annotator "ChessBase"]
[PlyCount "92"]
[EventDate "2022.07.08"]
[EventCountry "SRB"]
[SourceTitle "playchess.com"]
[Source "ChessBase"]
[SourceQuality "1"]
[TimeControl "5400+30"]

1. d4 {[%emt 0:00:03]} Nf6 {[%emt 0:03:12]} 2. c4 {[%emt 0:00:05]} e6 {[%emt 0:01:05]} 3. Nf3 {[%emt 0:00:07]} d5 {[%emt 0:00:09]} 4. Nc3 {[%emt 0:00:06]} c6 {[%emt 0:01:01]} 5. e3 {[%emt 0:01:32]} Nbd7 {[%emt 0:00:13]} 6. Be2 {[%emt 0:00:26]} Bd6 {[%emt 0:02:14]} 7. O-O {[%emt 0:00:54]} O-O {[%emt 0:00:11]} 8. b3 {[%emt 0:00:04]} Ne4 {[%emt 0:00:43]} 9. Bb2 {[%emt 0:12:30]} f5 {[%emt 0:00:19]} 10. Rc1 {[%emt 0:01:37]} Qe7 {[%emt 0:02:51]} 11. Bd3 {[%emt 0:10:18]} Nxc3 {[%emt 0:09:38]} 12. Bxc3 {[%emt 0:06:00]} b6 {[%emt 0:03:01]} 13. Qc2 {[%emt 0:02:25]} Bb7 {[%emt 0:01:49]} 14. cxd5 {[%emt 0:01:29]} cxd5 {[%emt 0:00:20]} 15. b4 {[%emt 0:07:20]} Rfc8 {[%emt 0:09:12]} 16. Qb3 {[%emt 0:01:18]} Rc7 {[%emt 0:05:53]} 17. a4 {[%emt 0:01:29]} a6 {[%emt 0:09:58]} 18. Rc2 {[%emt 0:00:19]} Rac8 {[%emt 0:10:07]} 19. Rfc1 {[%emt 0:09:19]} Nb8 {[%emt 0:01:32]} 20. h3 {[%emt 0:04:03]} h6 {[%emt 0:03:08]} 21. b5 {[%emt 0:04:07]} a5 {[%emt 0:05:26]} 22. Bb2 {[%emt 0:00:30]} Rxc2 {[%emt 0:00:17]} 23. Rxc2 {[%emt 0:00:07]} Rxc2 {[%emt 0:00:54]} 24. Qxc2 {[%emt 0:00:44]} Nd7 {[%emt 0:00:24]} 25. Qc1 {[%emt 0:02:39]} Kf7 {[%emt 0:03:18]} 26. Nd2 {[%emt 0:02:50]} Qf8 {[%emt 0:07:10]} 27. Nb1 {[%emt 0:02:35]} g6 {[%emt 0:02:20]} 28. Qc3 {[%emt 0:06:36]} Qc8 {[%emt 0:02:51]} 29. Qb3 {[%emt 0:00:13]} Qf8 {[%emt 0:02:11]} 30. Ba3 {[%emt 0:00:51]} Bxa3 {[%emt 0:03:03]} 31. Nxa3 {[%emt 0:00:17]} Ke8 {[%emt 0:00:33]} 32. Nb1 {[%emt 0:01:56]} Kd8 {[%emt 0:01:06]} 33. Nc3 {[%emt 0:00:58]} Qd6 {[%emt 0:01:16]} 34. Ne2 {[%emt 0:00:53]} g5 {[%emt 0:01:50]} 35. Qc3 {[%emt 0:01:17]} Nf6 {[%emt 0:00:20]} 36. f3 {[%emt 0:04:44]} Bc8 {[%emt 0:01:22]} 37. Nc1 {[%emt 0:03:18]} Bd7 {[%emt 0:02:11]} 38. Bf1 {[%emt 0:02:19]} Be8 {[%emt 0:00:11]} 39. Nd3 {[%emt 0:00:15]} Nd7 {[%emt 0:00:28]} 40. Qc1 {[%emt 0:04:19]} Bg6 {[%emt 0:00:36]} 41. f4 {[%emt 0:00:38]} Bh5 {[%emt 0:01:00]} 42. h4 {[%emt 0:04:10]} gxh4 {[%emt 0:01:16]} 43. Qe1 {[%emt 0:00:32]} Qe7 {[%emt 0:00:20]} 44. Qc1 {[%emt 0:00:16]} Qd6 {[%emt 0:01:32]} 45. Qe1 {[%emt 0:00:12]} Qe7 {[%emt 0:00:37]} 46. Qc1 {[%emt 0:00:22]} Qd6 {[%emt 0:00:55]} 1/2-1/2

[Event "Paracin Open 2022"]
[Site "Paracin"]
[Date "2022.07.16"]
[Round "9.2"]
[White "Predke, Alexandr"]
[Black "Pranav Vijay"]
[Result "1-0"]
[ECO "C55"]
[WhiteElo "2688"]
[BlackElo "2265"]
[Annotator "ChessBase"]
[PlyCount "67"]
[EventDate "2022.07.08"]
[EventCountry "SRB"]
[SourceTitle "playchess.com"]
[Source "ChessBase"]
[SourceQuality "1"]
[TimeControl "5400+30"]

1. e4 {[%emt 0:02:40]} e5 {[%emt 0:00:18]} 2. Nf3 {[%emt 0:00:07]} Nc6 {[%emt 0:00:14]} 3. Bc4 {[%emt 0:00:09]} Nf6 {[%emt 0:00:14]} 4. d3 {[%emt 0:00:06]} h6 {[%emt 0:00:29]} 5. O-O {[%emt 0:01:07]} d6 {[%emt 0:00:13]} 6. a4 {[%emt 0:00:18]} g5 {[%emt 0:04:17]} 7. a5 {[%emt 0:00:24]} a6 {[%emt 0:01:16]} 8. c3 {[%emt 0:00:16]} Nh5 {[%emt 0:09:35]} 9. d4 {[%emt 0:07:09]} g4 {[%emt 0:11:55]} 10. Ne1 {[%emt 0:00:16]} Qf6 {[%emt 0:03:06]} 11. f4 {[%emt 0:22:08]} exd4 {[%emt 0:09:09]} 12. Nc2 {[%emt 0:14:40]} dxc3 {[%emt 0:17:44]} 13. Nxc3 {[%emt 0:00:16]} Bg7 {[%emt 0:00:13]} 14. Ra4 {[%emt 0:16:23]} Be6 {[%emt 0:13:48]} 15. Ne3 {[%emt 0:10:08]} Qh4 {[%emt 0:08:09]} 16. g3 {[%emt 0:01:53]} Qh3 {[%emt 0:00:21]} 17. Bxe6 {[%emt 0:07:17]} fxe6 {[%emt 0:00:05]} 18. Qb3 {[%emt 0:00:01]} Kd7 {[%emt 0:06:40]} 19. e5 {[%emt 0:01:21]} d5 {[%emt 0:03:48]} 20. Ne4 {[%emt 0:05:37]} Nxg3 {[%emt 0:03:13]} 21. Nxg3 {[%emt 0:01:30]} Kc8 {[%emt 0:00:40]} 22. Nxd5 {[%emt 0:01:48]} exd5 {[%emt 0:00:57]} 23. Qxd5 {[%emt 0:00:02]} h5 {[%emt 0:00:59]} 24. Ra3 {[%emt 0:01:02]} Bf8 {[%emt 0:01:01]} 25. Qe6+ {[%emt 0:00:35]} Kb8 {[%emt 0:00:02]} 26. Qe8+ {[%emt 0:00:08]} Ka7 {[%emt 0:01:42]} 27. Be3+ {[%emt 0:00:04]} Nd4 {[%emt 0:00:05]} 28. Bxd4+ {[%emt 0:02:28]} c5 {[%emt 0:00:00]} 29. Qd7 {[%emt 0:00:56]} cxd4 {[%emt 0:01:11]} 30. Qxd4+ {[%emt 0:00:04]} Kb8 {[%emt 0:00:05]} 31. Qd8+ {[%emt 0:00:07]} Ka7 {[%emt 0:00:04]} 32. Qb6+ {[%emt 0:00:02]} Kb8 {[%emt 0:00:05]} 33. Rb3 {[%emt 0:00:22]} Ra7 {[%emt 0:00:47]} 34. Qd8# {[%emt 0:00:05]} 1-0

[Event "Paracin Open 2022"]
[Site "Paracin"]
[Date "2022.07.16"]
[Round "9.3"]
[White "Nogerbek, Kazybek"]
[Black "Menezes, Christoph"]
[Result "1/2-1/2"]
[ECO "E05"]
[WhiteElo "2437"]
[BlackElo "2417"]
[Annotator "ChessBase"]
[PlyCount "57"]
[EventDate "2022.07.08"]
[EventCountry "SRB"]
[SourceTitle "playchess.com"]
[Source "ChessBase"]
[SourceQuality "1"]
[TimeControl "5400+30"]

1. c4 {[%emt 0:01:04]} e6 {[%emt 0:00:52]} 2. Nf3 {[%emt 0:00:23]} Nf6 {[%emt 0:00:30]} 3. g3 {[%emt 0:00:38]} d5 {[%emt 0:00:26]} 4. d4 {[%emt 0:00:49]} Be7 {[%emt 0:00:38]} 5. Bg2 {[%emt 0:00:11]} O-O {[%emt 0:00:19]} 6. O-O {[%emt 0:00:08]} dxc4 {[%emt 0:00:42]} 7. Qc2 {[%emt 0:00:20]} a6 {[%emt 0:00:37]} 8. a4 {[%emt 0:00:10]} Bd7 {[%emt 0:00:39]} 9. Qxc4 {[%emt 0:00:09]} Bc6 {[%emt 0:00:19]} 10. Nc3 {[%emt 0:00:42]} b5 {[%emt 0:01:39]} 11. Qd3 {[%emt 0:01:28]} b4 {[%emt 0:02:38]} 12. Nb1 {[%emt 0:00:09]} Be4 {[%emt 0:04:19]} 13. Qd1 {[%emt 0:00:27]} c5 {[%emt 0:02:56]} 14. Nbd2 {[%emt 0:01:35]} Bd5 {[%emt 0:02:50]} 15. dxc5 {[%emt 0:01:05]} Nbd7 {[%emt 0:08:21]} 16. c6 {[%emt 0:02:04]} Bxc6 {[%emt 0:01:13]} 17. Nb3 {[%emt 0:00:25]} Bd5 {[%emt 0:08:49]} 18. Be3 {[%emt 0:05:05]} Rc8 {[%emt 0:04:29]} 19. Bd4 {[%emt 0:08:56]} Qc7 {[%emt 0:01:45]} 20. Rc1 {[%emt 0:02:35]} Qb7 {[%emt 0:02:54]} 21. Na5 {[%emt 0:09:57]} Qa8 {[%emt 0:00:17]} 22. Ne1 {[%emt 0:02:12]} Rxc1 {[%emt 0:07:57]} 23. Qxc1 {[%emt 0:00:07]} Bxg2 {[%emt 0:00:35]} 24. Nxg2 {[%emt 0:00:07]} Rc8 {[%emt 0:00:06]} 25. Qd1 {[%emt 0:01:53]} Qd5 {[%emt 0:02:23]} 26. Bxf6 {[%emt 0:02:42]} Nxf6 {[%emt 0:00:56]} 27. Qxd5 {[%emt 0:07:27]} Nxd5 {[%emt 0:00:21]} 28. Ne1 {[%emt 0:00:23]} Nb6 {[%emt 0:07:40]} 29. Nd3 {[%emt 0:01:36]} 1/2-1/2

[Event "Paracin Open 2022"]
[Site "Paracin"]
[Date "2022.07.16"]
[Round "9.4"]
[White "Urazayev, Arystanbek"]
[Black "Muthaiah AL"]
[Result "0-1"]
[ECO "B18"]
[WhiteElo "2430"]
[BlackElo "2401"]
[Annotator "ChessBase"]
[PlyCount "108"]
[EventDate "2022.07.08"]
[EventCountry "SRB"]
[SourceTitle "playchess.com"]
[Source "ChessBase"]
[SourceQuality "1"]
[TimeControl "5400+30"]

1. e4 {[%emt 0:00:03]} c6 {[%emt 0:01:29]} 2. d4 {[%emt 0:01:16]} d5 {[%emt 0:00:53]} 3. Nd2 {[%emt 0:00:21]} dxe4 {[%emt 0:03:07]} 4. Nxe4 {[%emt 0:01:36]} Bf5 {[%emt 0:00:30]} 5. Ng3 {[%emt 0:01:30]} Bg6 {[%emt 0:00:27]} 6. h4 {[%emt 0:02:54]} h6 {[%emt 0:00:15]} 7. Nh3 {[%emt 0:04:26]} Nf6 {[%emt 0:05:56]} 8. Nf4 {[%emt 0:01:07]} Bh7 {[%emt 0:00:18]} 9. Bc4 {[%emt 0:00:16]} e5 {[%emt 0:06:19]} 10. dxe5 {[%emt 0:07:58]} Qa5+ {[%emt 0:02:28]} 11. c3 {[%emt 0:06:05]} Qxe5+ {[%emt 0:00:18]} 12. Kf1 {[%emt 0:04:36]} Nbd7 {[%emt 0:36:54]} 13. Qf3 {[%emt 0:22:28]} Qc5 {[%emt 0:05:52]} 14. Bd3 {[%emt 0:04:42]} O-O-O {[%emt 0:03:31]} 15. Bxh7 {[%emt 0:02:16]} Rxh7 {[%emt 0:00:22]} 16. Be3 {[%emt 0:05:30]} Qb5+ {[%emt 0:01:37]} 17. Qe2 {[%emt 0:00:07]} Qe5 {[%emt 0:05:39]} 18. Qc4 {[%emt 0:05:39]} Bd6 {[%emt 0:02:27]} 19. Re1 {[%emt 0:05:04]} g6 {[%emt 0:12:24]} 20. h5 {[%emt 0:01:22]} g5 {[%emt 0:00:40]} 21. Nd3 {[%emt 0:00:06]} Qe6 {[%emt 0:00:10]} 22. Qxe6 {[%emt 0:09:52]} fxe6 {[%emt 0:00:01]} 23. Ne2 {[%emt 0:00:28]} Rf7 {[%emt 0:02:14]} 24. Nd4 {[%emt 0:01:52]} Re8 {[%emt 0:03:13]} 25. Ke2 {[%emt 0:00:50]} a6 {[%emt 0:01:04]} 26. Nc2 {[%emt 0:01:23]} e5 {[%emt 0:00:29]} 27. Rd1 {[%emt 0:02:03]} e4 {[%emt 0:00:37]} 28. Nc1 {[%emt 0:01:56]} Bc7 {[%emt 0:00:09]} 29. Nb3 {[%emt 0:02:08]} Ne5 {[%emt 0:00:48]} 30. Nc5 {[%emt 0:02:27]} Nd5 {[%emt 0:01:47]} 31. Rhf1 {[%emt 0:03:01]} Nc4 {[%emt 0:00:38]} 32. Bc1 {[%emt 0:00:32]} Nf4+ {[%emt 0:00:34]} 33. Bxf4 {[%emt 0:00:14]} gxf4 {[%emt 0:00:02]} 34. Rd4 {[%emt 0:00:45]} f3+ {[%emt 0:00:22]} 35. gxf3 {[%emt 0:00:04]} exf3+ {[%emt 0:00:08]} 36. Kd1 {[%emt 0:00:12]} Nxb2+ {[%emt 0:00:34]} 37. Kc1 {[%emt 0:00:46]} Bb6 {[%emt 0:00:11]} 38. Ne4 {[%emt 0:00:52]} Bxd4 {[%emt 0:01:29]} 39. Nd6+ {[%emt 0:00:02]} Kd7 {[%emt 0:00:15]} 40. Nxf7 {[%emt 0:00:02]} Bxc3 {[%emt 0:00:12]} 41. Ne3 {[%emt 0:00:26]} Bd4 {[%emt 0:01:07]} 42. Nf5 {[%emt 0:00:50]} Bf6 {[%emt 0:00:53]} 43. Kc2 {[%emt 0:00:46]} Re2+ {[%emt 0:01:00]} 44. Kb3 {[%emt 0:00:01]} c5 {[%emt 0:01:50]} 45. N7xh6 {[%emt 0:00:24]} a5 {[%emt 0:00:45]} 46. a4 {[%emt 0:01:18]} c4+ {[%emt 0:00:22]} 47. Ka3 {[%emt 0:00:01]} Nd3 {[%emt 0:00:47]} 48. Rb1 {[%emt 0:01:06]} Bb2+ {[%emt 0:00:38]} 49. Rxb2 {[%emt 0:00:08]} Rxb2 {[%emt 0:00:07]} 50. Ng4 {[%emt 0:00:12]} Rb3+ {[%emt 0:00:42]} 51. Ka2 {[%emt 0:00:02]} Nb4+ {[%emt 0:00:09]} 52. Ka1 {[%emt 0:00:04]} c3 {[%emt 0:00:07]} 53. Nd4 {[%emt 0:00:13]} Rb2 {[%emt 0:01:02]} 54. h6 {[%emt 0:00:53]} Rd2 {[%emt 0:00:21]} 0-1